[Event "4th Baskent University Open 2019"]
[Site "Ankara"]
[Date "2019.06.19"]
[Round "4"]
[White "Celik, Meric"]
[Black "Odabasi, Nail"]
[Result "1-0"]
[ECO "B01"]
[WhiteElo "1650"]
[BlackElo "1443"]
[Annotator "NA"]
[PlyCount "93"]
[EventDate "2019.06.18"]
[EventType "swiss"]
[EventCountry "TUR"]
[SourceTitle "playchess.com"]
[Source "ChessBase"]
[SourceQuality "1"]
[TimeControl "5400+30"]

1. e4 {[%emt 0:00:30]} d5 {[%emt 0:00:30]} 2. exd5 {[%emt 0:00:00]} Nf6 {[%emt 0:00:30]} 3. Bb5+ {[%emt 0:00:00]} Bd7 {[%emt 0:00:00]} 4. Be2 {[%emt 0:00:30]} Nxd5 {[%emt 0:00:00]} 5. d4 {[%emt 0:00:00]} g6 {[%emt 0:02:30]} 6. Nf3 {[%emt 0:02:00]} Bg7 {[%emt 0:00:30]} 7. c4 {[%emt 0:00:30]} Nb6 {[%emt 0:00:00]} 8. Nc3 {[%emt 0:03:30]} c6 {[%emt 0:01:00]} 9. c5 {[%emt 0:04:30]} Nd5 {[%emt 0:00:30]} 10. Qb3 {[%emt 0:02:30]} Nxc3 {[%emt 0:00:30]} 11. bxc3 {[%emt 0:00:30]} Bc8 {[%emt 0:02:30]} 12. Bc4 {[%emt 0:03:30]} O-O {[%emt 0:00:30]} 13. Bf4 {[%emt 0:02:30]} Nd7 {[%emt 0:01:30]} 14. O-O {[%emt 0:03:30]} Nf6 {[%emt 0:02:30]} 15. a4 {[%emt 0:08:30]} e6 {[%emt 0:01:30]} 16. a5 {[%emt 0:04:30]} a6 {[%emt 0:00:30]} 17. Rfe1 {[%emt 0:02:30]} Nd5 {[%emt 0:00:30]} 18. Bd6 {[%emt 0:01:30]} Re8 {[%emt 0:00:30]} 19. Qc2 {[%emt 0:07:30]} Ne7 {[%emt 0:03:30]} 20. Bf4 {[%emt 0:01:30]} Nf5 {[%emt 0:01:30]} 21. Qe4 {[%emt 0:04:30]} h6 {[%emt 0:02:30]} 22. h3 {[%emt 0:02:30]} Ne7 {[%emt 0:09:30]} 23. Qe3 {[%emt 0:04:30]} g5 {[%emt 0:04:30]} 24. Bh2 {[%emt 0:00:00]} Nd5 {[%emt 0:00:30]} 25. Qd2 {[%emt 0:01:00]} Bd7 {[%emt 0:02:30]} 26. Ne5 {[%emt 0:00:30]} Re7 {[%emt 0:03:30]} 27. Bb3 {[%emt 0:06:30]} Be8 {[%emt 0:01:30]} 28. Bc2 {[%emt 0:01:30]} f5 {[%emt 0:00:30]} 29. Nc4 {[%emt 0:03:30]} Bf7 {[%emt 0:12:30]} 30. Bd6 {[%emt 0:02:30]} Rd7 {[%emt 0:03:30]} 31. Reb1 {[%emt 0:01:30]} Bg6 {[%emt 0:05:30]} 32. Bd3 {[%emt 0:04:30]} Qe8 {[%emt 0:01:30]} 33. Be5 {[%emt 0:03:44]} Bxe5 {[%emt 0:01:30]} 34. Nxe5 {[%emt 0:00:16]} Rg7 {[%emt 0:00:30]} 35. Nc4 {[%emt 0:01:20]} Rb8 {[%emt 0:02:30]} 36. Nd6 {[%emt 0:00:11]} Qf8 {[%emt 0:02:30]} 37. Rb3 {[%emt 0:01:30]} Rd7 {[%emt 0:02:30]} 38. Qb2 {[%emt 0:02:00]} Rxd6 {[%emt 0:04:30]} 39. cxd6 {[%emt 0:00:36]} Qxd6 {[%emt 0:00:30]} 40. Rxb7 {[%emt 0:02:08]} Rxb7 {[%emt 0:00:30]} 41. Qxb7 {[%emt 0:00:00]} Nxc3 {[%emt 0:00:00]} 42. Qb6 {[%emt 0:01:04]} e5 {[%emt 0:00:00]} 43. Bxa6 {[%emt 0:01:24]} Qxd4 {[%emt 0:00:30]} 44. Qxd4 {[%emt 0:00:30]} exd4 {[%emt 0:00:30]} 45. Bd3 {[%emt 0:00:15]} Kf7 {[%emt 0:01:30]} 46. a6 {[%emt 0:00:05]} Nb5 {[%emt 0:00:00]} 47. Bxb5 {[%emt 0:00:08]} 1-0

[Event "4th Baskent University Open 2019"]
[Site "Ankara"]
[Date "2019.06.19"]
[Round "4"]
[White "Sinay, Ahmet"]
[Black "Sahin, Arda"]
[Result "0-1"]
[ECO "B22"]
[WhiteElo "1636"]
[BlackElo "1710"]
[Annotator "NA"]
[PlyCount "30"]
[EventDate "2019.06.18"]
[EventType "swiss"]
[EventCountry "TUR"]
[SourceTitle "playchess.com"]
[Source "ChessBase"]
[SourceQuality "1"]
[TimeControl "5400+30"]

1. e4 {[%emt 0:00:30]} c5 {[%emt 0:00:30]} 2. c3 {[%emt 0:00:30]} Nf6 {[%emt 0:00:30]} 3. e5 {[%emt 0:00:00]} Nd5 {[%emt 0:00:00]} 4. d4 {[%emt 0:00:00]} cxd4 {[%emt 0:00:00]} 5. cxd4 {[%emt 0:00:00]} d6 {[%emt 0:00:00]} 6. exd6 {[%emt 0:02:00]} Qxd6 {[%emt 0:00:00]} 7. Nc3 {[%emt 0:00:30]} Nc6 {[%emt 0:00:30]} 8. Qb3 {[%emt 0:04:30]} Be6 {[%emt 0:20:30]} 9. Bc4 {[%emt 0:12:30]} Nxd4 {[%emt 0:16:30]} 10. Qxb7 {[%emt 0:12:30]} Rb8 {[%emt 0:04:30]} 11. Qxa7 {[%emt 0:00:30]} Nxc3 {[%emt 0:04:30]} 12. Bd3 {[%emt 0:04:30]} Ncb5 {[%emt 0:05:30]} 13. Qa4 {[%emt 0:01:30]} Bd7 {[%emt 0:00:30]} 14. Be3 {[%emt 0:03:30]} e5 {[%emt 0:01:30]} 15. Rd1 {[%emt 0:00:30]} Nc3 {[%emt 0:00:00]} 0-1

[Event "4th Baskent University Open 2019"]
[Site "Ankara"]
[Date "2019.06.19"]
[Round "4"]
[White "Yilmaz, Hasan"]
[Black "Dolek, Gokalp Deniz"]
[Result "1-0"]
[ECO "E91"]
[WhiteElo "1600"]
[BlackElo "1352"]
[Annotator "NA"]
[PlyCount "71"]
[EventDate "2019.06.18"]
[EventType "swiss"]
[EventCountry "TUR"]
[SourceTitle "playchess.com"]
[Source "ChessBase"]
[SourceQuality "1"]
[TimeControl "5400+30"]

1. d4 {[%emt 0:00:30]} Nf6 {[%emt 0:00:30]} 2. Nf3 {[%emt 0:00:30]} g6 {[%emt 0:01:30]} 3. c4 {[%emt 0:00:30]} Bg7 {[%emt 0:00:30]} 4. Nc3 {[%emt 0:00:00]} d6 {[%emt 0:00:30]} 5. e4 {[%emt 0:00:00]} O-O {[%emt 0:00:00]} 6. Be2 {[%emt 0:01:30]} Nc6 {[%emt 0:00:00]} 7. d5 {[%emt 0:02:30]} Nb8 {[%emt 0:00:30]} 8. h3 {[%emt 0:00:30]} e5 {[%emt 0:00:30]} 9. Be3 {[%emt 0:00:30]} Nbd7 {[%emt 0:00:30]} 10. Qd2 {[%emt 0:00:30]} Ne8 {[%emt 0:00:30]} 11. g4 {[%emt 0:02:30]} a5 {[%emt 0:05:30]} 12. h4 {[%emt 0:09:30]} Nc5 {[%emt 0:01:30]} 13. h5 {[%emt 0:12:30]} Bxg4 {[%emt 0:00:30]} 14. hxg6 {[%emt 0:00:00]} fxg6 {[%emt 0:00:30]} 15. Ng5 {[%emt 0:05:00]} Bxe2 {[%emt 0:00:30]} 16. Qxe2 {[%emt 0:02:30]} h6 {[%emt 0:04:30]} 17. Ne6 {[%emt 0:06:30]} Nxe6 {[%emt 0:00:30]} 18. dxe6 {[%emt 0:00:30]} Qf6 {[%emt 0:02:30]} 19. Qg4 {[%emt 0:01:30]} h5 {[%emt 0:00:30]} 20. Qh3 {[%emt 0:05:30]} c6 {[%emt 0:01:30]} 21. O-O-O {[%emt 0:00:00]} Kh7 {[%emt 0:11:30]} 22. c5 {[%emt 0:03:00]} Nc7 {[%emt 0:03:30]} 23. e7 {[%emt 0:02:30]} Rfe8 {[%emt 0:01:30]} 24. cxd6 {[%emt 0:00:00]} Ne6 {[%emt 0:00:30]} 25. Bb6 {[%emt 0:14:00]} Nd4 {[%emt 0:02:30]} 26. d7 {[%emt 0:02:30]} Rxe7 {[%emt 0:04:30]} 27. d8=Q {[%emt 0:00:30]} Rxd8 {[%emt 0:00:30]} 28. Bxd8 {[%emt 0:00:30]} Qxf2 {[%emt 0:00:00]} 29. Rxd4 {[%emt 0:10:05]} exd4 {[%emt 0:00:00]} 30. Rf1 {[%emt 0:02:24]} Bh6+ {[%emt 0:01:30]} 31. Kb1 {[%emt 0:00:01]} Qd2 {[%emt 0:00:30]} 32. Bxe7 {[%emt 0:00:48]} d3 {[%emt 0:00:30]} 33. Qd7 {[%emt 0:04:03]} Qc2+ {[%emt 0:00:30]} 34. Ka1 {[%emt 0:00:01]} Bc1 {[%emt 0:04:30]} 35. Bg5+ {[%emt 0:00:28]} Kg8 {[%emt 0:00:00]} 36. Qe8+ {[%emt 0:00:20]} 1-0

[Event "4th Baskent University Open 2019"]
[Site "Ankara"]
[Date "2019.06.19"]
[Round "4"]
[White "Keseroglu, Yigit Can"]
[Black "Cevizci, Yusuf Baran"]
[Result "1-0"]
[ECO "D20"]
[WhiteElo "1559"]
[BlackElo "1670"]
[Annotator "NA"]
[PlyCount "67"]
[EventDate "2019.06.18"]
[EventType "swiss"]
[EventCountry "TUR"]
[SourceTitle "playchess.com"]
[Source "ChessBase"]
[SourceQuality "1"]
[TimeControl "5400+30"]

1. d4 {[%emt 0:01:30]} d5 {[%emt 0:00:30]} 2. c4 {[%emt 0:00:30]} dxc4 {[%emt 0:01:30]} 3. Nc3 {[%emt 0:02:30]} Nf6 {[%emt 0:00:00]} 4. e4 {[%emt 0:00:00]} e6 {[%emt 0:00:00]} 5. a3 {[%emt 0:01:00]} a6 {[%emt 0:09:30]} 6. Bxc4 {[%emt 0:06:30]} b5 {[%emt 0:01:30]} 7. Bd3 {[%emt 0:00:00]} Bb7 {[%emt 0:00:00]} 8. b4 {[%emt 0:11:00]} Nbd7 {[%emt 0:07:00]} 9. Nf3 {[%emt 0:00:30]} Be7 {[%emt 0:01:30]} 10. Bf4 {[%emt 0:02:30]} c6 {[%emt 0:03:30]} 11. O-O {[%emt 0:03:30]} a5 {[%emt 0:00:00]} 12. Qb3 {[%emt 0:00:30]} Nh5 {[%emt 0:02:00]} 13. Be3 {[%emt 0:01:30]} a4 {[%emt 0:00:30]} 14. Qa2 {[%emt 0:01:30]} Rb8 {[%emt 0:06:30]} 15. Rfd1 {[%emt 0:03:30]} Qc7 {[%emt 0:00:30]} 16. Rac1 {[%emt 0:01:30]} Qd8 {[%emt 0:06:30]} 17. d5 {[%emt 0:00:00]} exd5 {[%emt 0:00:30]} 18. exd5 {[%emt 0:01:00]} O-O {[%emt 0:00:00]} 19. Bf5 {[%emt 0:00:30]} c5 {[%emt 0:02:00]} 20. d6 {[%emt 0:09:30]} Bf6 {[%emt 0:00:00]} 21. bxc5 {[%emt 0:01:30]} Bxf3 {[%emt 0:03:00]} 22. gxf3 {[%emt 0:00:30]} Bxc3 {[%emt 0:00:30]} 23. Rxc3 {[%emt 0:01:30]} Ne5 {[%emt 0:00:30]} 24. Qd5 {[%emt 0:03:30]} Qf6 {[%emt 0:02:30]} 25. Bg4 {[%emt 0:10:30]} Nxg4 {[%emt 0:01:30]} 26. fxg4 {[%emt 0:00:30]} Qxc3 {[%emt 0:00:30]} 27. gxh5 {[%emt 0:00:00]} b4 {[%emt 0:02:30]} 28. d7 {[%emt 0:01:00]} Qf6 {[%emt 0:00:30]} 29. Bg5 {[%emt 0:00:30]} Qe6 {[%emt 0:00:30]} 30. Qxe6 {[%emt 0:00:30]} fxe6 {[%emt 0:00:30]} 31. axb4 {[%emt 0:00:30]} a3 {[%emt 0:00:30]} 32. Be7 {[%emt 0:02:30]} Rf4 {[%emt 0:00:30]} 33. c6 {[%emt 0:06:30]} Rc4 {[%emt 0:00:30]} 34. Bc5 {[%emt 0:00:00]} 1-0

[Event "4th Baskent University Open 2019"]
[Site "Ankara"]
[Date "2019.06.19"]
[Round "4"]
[White "Yilmaz, Umut Candas"]
[Black "Elma, Muge"]
[Result "0-1"]
[ECO "B50"]
[WhiteElo "1542"]
[BlackElo "1618"]
[Annotator "NA"]
[PlyCount "162"]
[EventDate "2019.06.18"]
[EventType "swiss"]
[EventCountry "TUR"]
[SourceTitle "playchess.com"]
[Source "ChessBase"]
[SourceQuality "1"]
[TimeControl "5400+30"]

1. e4 {[%emt 0:00:30]} c5 {[%emt 0:00:30]} 2. Nf3 {[%emt 0:00:30]} d6 {[%emt 0:00:00]} 3. c4 {[%emt 0:00:00]} Nf6 {[%emt 0:04:00]} 4. Nc3 {[%emt 0:00:00]} g6 {[%emt 0:00:30]} 5. d3 {[%emt 0:00:00]} Bg7 {[%emt 0:00:30]} 6. h3 {[%emt 0:00:00]} Nc6 {[%emt 0:00:30]} 7. Be3 {[%emt 0:00:30]} O-O {[%emt 0:00:30]} 8. Be2 {[%emt 0:06:30]} a6 {[%emt 0:01:30]} 9. O-O {[%emt 0:00:30]} Rb8 {[%emt 0:01:30]} 10. a4 {[%emt 0:00:30]} Re8 {[%emt 0:03:30]} 11. Ng5 {[%emt 0:03:30]} Nd4 {[%emt 0:04:30]} 12. Bxd4 {[%emt 0:00:30]} cxd4 {[%emt 0:00:00]} 13. Nb1 {[%emt 0:00:30]} h6 {[%emt 0:11:00]} 14. Nf3 {[%emt 0:01:30]} Qb6 {[%emt 0:01:30]} 15. Ra2 {[%emt 0:02:30]} Nd7 {[%emt 0:01:30]} 16. a5 {[%emt 0:00:00]} Qc5 {[%emt 0:12:30]} 17. Qd2 {[%emt 0:05:00]} b5 {[%emt 0:00:30]} 18. b4 {[%emt 0:00:30]} Qa7 {[%emt 0:00:30]} 19. cxb5 {[%emt 0:00:30]} Rxb5 {[%emt 0:06:30]} 20. Na3 {[%emt 0:00:00]} Rb7 {[%emt 0:00:30]} 21. Rc2 {[%emt 0:00:00]} Rc7 {[%emt 0:04:30]} 22. Rfc1 {[%emt 0:00:30]} Rxc2 {[%emt 0:01:30]} 23. Rxc2 {[%emt 0:00:00]} Qb8 {[%emt 0:08:30]} 24. Nc4 {[%emt 0:04:00]} Bb7 {[%emt 0:00:00]} 25. Ne1 {[%emt 0:02:30]} d5 {[%emt 0:01:00]} 26. exd5 {[%emt 0:00:30]} Bxd5 {[%emt 0:00:00]} 27. Bf3 {[%emt 0:00:30]} Bxf3 {[%emt 0:02:00]} 28. Nxf3 {[%emt 0:00:30]} Qb5 {[%emt 0:02:30]} 29. Qe1 {[%emt 0:00:30]} Qd5 {[%emt 0:03:30]} 30. Nfd2 {[%emt 0:12:30]} Kh7 {[%emt 0:05:30]} 31. Qe4 {[%emt 0:05:30]} Nf6 {[%emt 0:01:30]} 32. Qe5 {[%emt 0:03:30]} Qxe5 {[%emt 0:03:43]} 33. Nxe5 {[%emt 0:00:00]} Nd5 {[%emt 0:00:17]} 34. Nc6 {[%emt 0:01:00]} Nf4 {[%emt 0:01:01]} 35. b5 {[%emt 0:02:30]} axb5 {[%emt 0:00:21]} 36. Nb4 {[%emt 0:00:30]} Ne2+ {[%emt 0:01:14]} 37. Kf1 {[%emt 0:00:30]} Nc3 {[%emt 0:00:01]} 38. Nb3 {[%emt 0:02:30]} e5 {[%emt 0:00:58]} 39. Rc1 {[%emt 0:01:30]} f5 {[%emt 0:01:48]} 40. a6 {[%emt 0:01:30]} e4 {[%emt 0:01:20]} 41. a7 {[%emt 0:00:30]} Ra8 {[%emt 0:03:26]} 42. Nc6 {[%emt 0:00:30]} exd3 {[%emt 0:00:28]} 43. Ke1 {[%emt 0:01:30]} h5 {[%emt 0:01:56]} 44. f4 {[%emt 0:07:30]} b4 {[%emt 0:07:20]} 45. Kd2 {[%emt 0:00:30]} Bh6 {[%emt 0:02:34]} 46. Kxd3 {[%emt 0:00:30]} Bxf4 {[%emt 0:00:30]} 47. Ra1 {[%emt 0:00:30]} Nb5 {[%emt 0:01:09]} 48. Ra5 {[%emt 0:00:30]} Nc7 {[%emt 0:01:04]} 49. Nbxd4 {[%emt 0:00:30]} Re8 {[%emt 0:00:52]} 50. Kc4 {[%emt 0:04:30]} Bd6 {[%emt 0:00:55]} 51. Ra2 {[%emt 0:01:30]} Rc8 {[%emt 0:00:42]} 52. Re2 {[%emt 0:00:30]} Kh6 {[%emt 0:00:37]} 53. Nb5 {[%emt 0:02:30]} Na8 {[%emt 0:00:49]} 54. Kd5 {[%emt 0:00:00]} Bf8 {[%emt 0:00:08]} 55. Nbd4 {[%emt 0:05:00]} Nb6+ {[%emt 0:00:54]} 56. Ke6 {[%emt 0:00:00]} Bg7 {[%emt 0:00:32]} 57. Kf7 {[%emt 0:03:00]} Rf8+ {[%emt 0:00:44]} 58. Ke7 {[%emt 0:00:30]} Ra8 {[%emt 0:00:09]} 59. Ne6 {[%emt 0:00:30]} Nc8+ {[%emt 0:00:43]} 60. Kd7 {[%emt 0:00:30]} b3 {[%emt 0:00:37]} 61. Re3 {[%emt 0:02:30]} b2 {[%emt 0:00:53]} 62. Rb3 {[%emt 0:00:00]} Nxa7 {[%emt 0:00:00]} 63. Nc7 {[%emt 0:01:00]} Nxc6 {[%emt 0:00:00]} 64. Nxa8 {[%emt 0:02:30]} Na5 {[%emt 0:00:00]} 65. Rb5 {[%emt 0:02:24]} Nc4 {[%emt 0:00:04]} 66. Nc7 {[%emt 0:00:20]} Na3 {[%emt 0:00:06]} 67. Rb3 {[%emt 0:00:29]} b1=Q {[%emt 0:00:08]} 68. Rxb1 {[%emt 0:00:07]} Nxb1 {[%emt 0:00:01]} 69. Ne6 {[%emt 0:00:13]} h4 {[%emt 0:00:48]} 70. Ke7 {[%emt 0:00:27]} Be5 {[%emt 0:00:56]} 71. Kf7 {[%emt 0:00:30]} Bd6 {[%emt 0:01:23]} 72. Kf6 {[%emt 0:00:30]} Nd2 {[%emt 0:00:34]} 73. Nd4 {[%emt 0:00:30]} Bg3 {[%emt 0:01:01]} 74. Ne2 {[%emt 0:00:00]} Ne4+ {[%emt 0:00:30]} 75. Ke6 {[%emt 0:00:00]} Nc5+ {[%emt 0:00:00]} 76. Kd5 {[%emt 0:01:30]} Nd3 {[%emt 0:00:01]} 77. Kd4 {[%emt 0:00:30]} Nf4 {[%emt 0:00:28]} 78. Nxg3 {[%emt 0:00:30]} hxg3 {[%emt 0:00:06]} 79. Ke3 {[%emt 0:00:00]} Nxg2+ {[%emt 0:00:41]} 80. Kf3 {[%emt 0:00:00]} Nh4+ {[%emt 0:00:07]} 81. Kxg3 {[%emt 0:00:00]} Kg5 {[%emt 0:00:00]} 0-1

[Event "4th Baskent University Open 2019"]
[Site "Ankara"]
[Date "2019.06.19"]
[Round "5"]
[White "Bernadskiy, Vitaliy"]
[Black "Nikcevic, Nebojsa"]
[Result "1-0"]
[ECO "C90"]
[WhiteElo "2578"]
[BlackElo "2420"]
[Annotator "ChessBase"]
[PlyCount "85"]
[EventDate "2019.06.18"]
[EventType "swiss"]
[EventCountry "TUR"]
[SourceTitle "playchess.com"]
[Source "ChessBase"]
[SourceQuality "1"]
[TimeControl "5400+30"]

1. e4 {[%emt 0:00:30]} e5 {[%emt 0:00:30]} 2. Nf3 {[%emt 0:00:00]} Nc6 {[%emt 0:00:30]} 3. Bb5 {[%emt 0:00:00]} a6 {[%emt 0:05:30]} 4. Ba4 {[%emt 0:00:30]} Nf6 {[%emt 0:00:00]} 5. O-O {[%emt 0:00:30]} Be7 {[%emt 0:00:00]} 6. Re1 {[%emt 0:00:30]} b5 {[%emt 0:00:30]} 7. Bb3 {[%emt 0:00:00]} d6 {[%emt 0:00:00]} 8. c3 {[%emt 0:00:00]} O-O {[%emt 0:00:00]} 9. a4 {[%emt 0:00:00]} b4 {[%emt 0:09:30]} 10. a5 {[%emt 0:00:00]} Rb8 {[%emt 0:03:30]} 11. Bc4 {[%emt 0:00:30]} bxc3 {[%emt 0:08:30]} 12. dxc3 {[%emt 0:01:30]} Na7 {[%emt 0:01:30]} 13. b4 {[%emt 0:05:30]} Bb7 {[%emt 0:20:30]} 14. Nbd2 {[%emt 0:00:30]} Nb5 {[%emt 0:01:30]} 15. Qc2 {[%emt 0:01:30]} Qc8 {[%emt 0:00:30]} 16. Bd3 {[%emt 0:01:30]} c5 {[%emt 0:01:30]} 17. c4 {[%emt 0:00:30]} Nd4 {[%emt 0:00:30]} 18. Nxd4 {[%emt 0:00:00]} cxd4 {[%emt 0:02:30]} 19. Nf1 {[%emt 0:01:00]} Bc6 {[%emt 0:07:30]} 20. Rb1 {[%emt 0:01:30]} Qd7 {[%emt 0:00:30]} 21. Ng3 {[%emt 0:00:30]} Ne8 {[%emt 0:02:30]} 22. f4 {[%emt 0:03:30]} Nc7 {[%emt 0:02:30]} 23. Qe2 {[%emt 0:02:30]} Bh4 {[%emt 0:01:30]} 24. f5 {[%emt 0:00:30]} Bxg3 {[%emt 0:05:30]} 25. hxg3 {[%emt 0:00:30]} f6 {[%emt 0:00:30]} 26. Kf2 {[%emt 0:00:30]} g5 {[%emt 0:01:30]} 27. Bd2 {[%emt 0:01:30]} Rb7 {[%emt 0:01:30]} 28. Rb2 {[%emt 0:00:30]} Rfb8 {[%emt 0:00:30]} 29. Reb1 {[%emt 0:00:00]} Kg7 {[%emt 0:01:30]} 30. Rh1 {[%emt 0:02:00]} Rh8 {[%emt 0:03:05]} 31. Qh5 {[%emt 0:00:30]} Qe8 {[%emt 0:07:12]} 32. Qh6+ {[%emt 0:00:30]} Kf7 {[%emt 0:00:00]} 33. Rhb1 {[%emt 0:02:30]} Qf8 {[%emt 0:00:49]} 34. Qh5+ {[%emt 0:01:30]} Kg7 {[%emt 0:00:04]} 35. b5 {[%emt 0:00:30]} Be8 {[%emt 0:02:07]} 36. Qe2 {[%emt 0:00:30]} Bf7 {[%emt 0:01:10]} 37. b6 {[%emt 0:00:30]} Ne8 {[%emt 0:01:34]} 38. Bb4 {[%emt 0:00:30]} Qe7 {[%emt 0:00:49]} 39. Rc2 {[%emt 0:00:30]} Qd7 {[%emt 0:01:20]} 40. c5 {[%emt 0:00:30]} dxc5 {[%emt 0:00:04]} 41. Bxc5 {[%emt 0:00:00]} Nc7 {[%emt 0:00:08]} 42. Rcb2 {[%emt 0:02:00]} Qc6 {[%emt 0:01:49]} 43. Rc1 {[%emt 0:00:00]} 1-0

[Event "4th Baskent University Open 2019"]
[Site "Ankara"]
[Date "2019.06.19"]
[Round "5"]
[White "Iskandarov, Misratdin"]
[Black "Guseynov, Alihan"]
[Result "1/2-1/2"]
[ECO "B51"]
[WhiteElo "2502"]
[BlackElo "2274"]
[Annotator "ChessBase"]
[PlyCount "84"]
[EventDate "2019.06.18"]
[EventType "swiss"]
[EventCountry "TUR"]
[SourceTitle "playchess.com"]
[Source "ChessBase"]
[SourceQuality "1"]
[TimeControl "5400+30"]

1. e4 {[%emt 0:01:30]} c5 {[%emt 0:00:30]} 2. Nf3 {[%emt 0:00:30]} Nc6 {[%emt 0:00:30]} 3. Bb5 {[%emt 0:00:00]} d6 {[%emt 0:01:30]} 4. O-O {[%emt 0:00:00]} Bd7 {[%emt 0:00:00]} 5. Re1 {[%emt 0:00:30]} Nf6 {[%emt 0:00:00]} 6. c3 {[%emt 0:00:00]} a6 {[%emt 0:00:30]} 7. Bf1 {[%emt 0:00:00]} Bg4 {[%emt 0:00:30]} 8. h3 {[%emt 0:00:00]} Bxf3 {[%emt 0:00:30]} 9. Qxf3 {[%emt 0:00:00]} g6 {[%emt 0:00:30]} 10. d3 {[%emt 0:00:30]} Bg7 {[%emt 0:00:00]} 11. Be3 {[%emt 0:00:00]} Nd7 {[%emt 0:00:00]} 12. Nd2 {[%emt 0:00:00]} O-O {[%emt 0:00:30]} 13. Qd1 {[%emt 0:00:30]} b5 {[%emt 0:05:30]} 14. Nf3 {[%emt 0:05:30]} b4 {[%emt 0:05:30]} 15. Qa4 {[%emt 0:02:30]} Qc7 {[%emt 0:12:30]} 16. d4 {[%emt 0:09:30]} Rfb8 {[%emt 0:05:30]} 17. d5 {[%emt 0:02:30]} Na7 {[%emt 0:15:30]} 18. Bd2 {[%emt 0:02:30]} Nb5 {[%emt 0:05:30]} 19. Rac1 {[%emt 0:03:30]} bxc3 {[%emt 0:01:30]} 20. bxc3 {[%emt 0:00:30]} c4 {[%emt 0:06:30]} 21. Qxc4 {[%emt 0:09:30]} Qxc4 {[%emt 0:01:30]} 22. Bxc4 {[%emt 0:00:00]} Rc8 {[%emt 0:00:30]} 23. Bf1 {[%emt 0:00:00]} Nxc3 {[%emt 0:01:30]} 24. Re3 {[%emt 0:01:30]} Nxa2 {[%emt 0:05:30]} 25. Rxc8+ {[%emt 0:02:30]} Rxc8 {[%emt 0:00:30]} 26. Bxa6 {[%emt 0:00:30]} Rc7 {[%emt 0:05:30]} 27. Bb5 {[%emt 0:04:30]} Bh6 {[%emt 0:01:30]} 28. Ra3 {[%emt 0:00:30]} Bxd2 {[%emt 0:00:30]} 29. Nxd2 {[%emt 0:00:30]} Nb4 {[%emt 0:04:30]} 30. Ra4 {[%emt 0:01:30]} Nc2 {[%emt 0:00:30]} 31. f3 {[%emt 0:17:30]} Nc5 {[%emt 0:01:54]} 32. Ra2 {[%emt 0:00:30]} Nb4 {[%emt 0:02:29]} 33. Ra3 {[%emt 0:03:30]} Rb7 {[%emt 0:01:01]} 34. Bc4 {[%emt 0:00:30]} Nc2 {[%emt 0:01:29]} 35. Ra2 {[%emt 0:02:30]} Nd4 {[%emt 0:00:58]} 36. Kf2 {[%emt 0:00:30]} Ndb3 {[%emt 0:04:44]} 37. Nf1 {[%emt 0:08:30]} Nc1 {[%emt 0:01:09]} 38. Rc2 {[%emt 0:02:30]} N1d3+ {[%emt 0:02:06]} 39. Ke3 {[%emt 0:00:30]} Ne5 {[%emt 0:00:09]} 40. Ba2 {[%emt 0:01:30]} Ra7 {[%emt 0:01:12]} 41. Kd2 {[%emt 0:05:50]} Kg7 {[%emt 0:01:49]} 42. Ne3 {[%emt 0:00:23]} h5 {[%emt 0:00:24]} 1/2-1/2

[Event "4th Baskent University Open 2019"]
[Site "Ankara"]
[Date "2019.06.19"]
[Round "5"]
[White "Mammadov, Zaur"]
[Black "Odeev, Handszar"]
[Result "0-1"]
[ECO "B22"]
[WhiteElo "2428"]
[BlackElo "2386"]
[Annotator "NA"]
[PlyCount "110"]
[EventDate "2019.06.18"]
[EventType "swiss"]
[EventCountry "TUR"]
[SourceTitle "playchess.com"]
[Source "ChessBase"]
[SourceQuality "1"]
[TimeControl "5400+30"]

1. e4 {[%emt 0:00:30]} c5 {[%emt 0:02:30]} 2. c3 {[%emt 0:00:00]} d5 {[%emt 0:06:30]} 3. exd5 {[%emt 0:00:00]} Nf6 {[%emt 0:00:30]} 4. Nf3 {[%emt 0:00:00]} Qxd5 {[%emt 0:04:30]} 5. d4 {[%emt 0:00:00]} Bg4 {[%emt 0:00:30]} 6. Nbd2 {[%emt 0:00:30]} e6 {[%emt 0:21:30]} 7. Bc4 {[%emt 0:04:30]} Qd8 {[%emt 0:00:30]} 8. Qb3 {[%emt 0:00:00]} Qc7 {[%emt 0:00:00]} 9. Ne5 {[%emt 0:00:00]} Bd6 {[%emt 0:00:00]} 10. Bb5+ {[%emt 0:00:30]} Nc6 {[%emt 0:01:30]} 11. Ndc4 {[%emt 0:00:00]} O-O {[%emt 0:05:30]} 12. Nxd6 {[%emt 0:08:00]} Qxd6 {[%emt 0:00:30]} 13. Nxg4 {[%emt 0:00:30]} Nxg4 {[%emt 0:00:30]} 14. Be2 {[%emt 0:00:00]} Nf6 {[%emt 0:12:30]} 15. Qa3 {[%emt 0:02:00]} Qd5 {[%emt 0:01:30]} 16. Bf3 {[%emt 0:22:30]} Ne4 {[%emt 0:00:30]} 17. dxc5 {[%emt 0:01:30]} Ne5 {[%emt 0:00:30]} 18. Be3 {[%emt 0:00:30]} Nxf3+ {[%emt 0:03:30]} 19. gxf3 {[%emt 0:02:30]} Ng5 {[%emt 0:04:30]} 20. Bxg5 {[%emt 0:08:30]} Qxg5 {[%emt 0:00:00]} 21. Kf1 {[%emt 0:00:30]} Qf5 {[%emt 0:16:19]} 22. Qb4 {[%emt 0:08:30]} Qxf3 {[%emt 0:00:45]} 23. Rg1 {[%emt 0:00:00]} Rfd8 {[%emt 0:07:40]} 24. Qg4 {[%emt 0:00:00]} Qd3+ {[%emt 0:01:12]} 25. Qe2 {[%emt 0:02:30]} Qh3+ {[%emt 0:00:11]} 26. Rg2 {[%emt 0:01:30]} Rd5 {[%emt 0:00:35]} 27. Kg1 {[%emt 0:00:00]} Rxc5 {[%emt 0:00:55]} 28. Rd1 {[%emt 0:00:00]} Qf5 {[%emt 0:01:28]} 29. c4 {[%emt 0:03:30]} b5 {[%emt 0:03:16]} 30. cxb5 {[%emt 0:04:30]} Rxb5 {[%emt 0:00:03]} 31. Rg3 {[%emt 0:02:30]} h5 {[%emt 0:00:06]} 32. h4 {[%emt 0:00:00]} Rb4 {[%emt 0:04:43]} 33. Rg5 {[%emt 0:02:00]} Qf6 {[%emt 0:01:11]} 34. b3 {[%emt 0:09:35]} Rxh4 {[%emt 0:00:30]} 35. Rg3 {[%emt 0:00:25]} Rd8 {[%emt 0:00:32]} 36. Rc1 {[%emt 0:00:30]} g6 {[%emt 0:00:31]} 37. Kg2 {[%emt 0:00:35]} Rf4 {[%emt 0:00:22]} 38. Rc2 {[%emt 0:03:13]} h4 {[%emt 0:00:14]} 39. Rgc3 {[%emt 0:02:07]} Qg5+ {[%emt 0:00:12]} 40. Kh2 {[%emt 0:00:28]} Rfd4 {[%emt 0:00:34]} 41. Qf3 {[%emt 0:01:05]} Rd1 {[%emt 0:01:04]} 42. Rc8 {[%emt 0:00:44]} Kg7 {[%emt 0:00:35]} 43. Rxd8 {[%emt 0:00:50]} Rxd8 {[%emt 0:00:04]} 44. Rc4 {[%emt 0:01:57]} Rd5 {[%emt 0:00:55]} 45. Rg4 {[%emt 0:01:55]} Qe5+ {[%emt 0:00:16]} 46. Kg2 {[%emt 0:01:19]} g5 {[%emt 0:00:32]} 47. Re4 {[%emt 0:01:32]} Qf6 {[%emt 0:00:46]} 48. Qe3 {[%emt 0:00:30]} a5 {[%emt 0:00:00]} 49. b4 {[%emt 0:00:07]} axb4 {[%emt 0:00:00]} 50. Rxb4 {[%emt 0:00:00]} Qf5 {[%emt 0:00:23]} 51. Re4 {[%emt 0:00:34]} Rd1 {[%emt 0:01:29]} 52. Kh2 {[%emt 0:01:42]} Qd5 {[%emt 0:00:27]} 53. Qc3+ {[%emt 0:01:07]} Kg6 {[%emt 0:00:24]} 54. Qc2 {[%emt 0:03:03]} Qd3 {[%emt 0:00:15]} 55. Qc6 {[%emt 0:00:42]} Qd6+ {[%emt 0:00:00]} 0-1